Cogmind - Beta 11 @@@ ROGUE MODE // 2022.03.18 @ 12:11:14 Player: Yosh Result: Destroyed by D-53 Grenadier with Mini Grenade Launcher Performance ------------- Evolutions (0) 0 Regions Visited (3) 600 Robots Destroyed (7) 35 Value Destroyed (125) 125 Prototype IDs (26) 520 Alien Tech Used (0) 0 Bonus (300) 300 TOTAL SCORE: 1580 Bonus ------- Aligned with FarCom 300 Cogmind --------- Core Integrity 0/250 Matter 233/300 Energy 100/100 System Corruption 0% Temperature Cool (0) Movement Rolling (115) Ox1 Location -10/Exiles Parts ------- > --- POWER (1) -------- (None) > --- PROPULSION (2) --- Compact Wheel > --- UTILITY (2) ------ Large Storage Unit Seismic Detector > --- WEAPON (2) ------- Particle Gun > --- INVENTORY (15) --- Ion Engine Small Storage Unit Experimental Sensor Array Signal Interpreter Improved Targeting Computer Improved Targeting Computer Improved Targeting Computer Improved Targeting Computer Weapon Shielding Grenade Launcher Heavy Hammer Heavy Hammer Heavy Hammer Heavy Hammer Peak State ------------ > --- POWER ------------ Light Nuclear Core > --- PROPULSION ------- Light Treads Light Treads > --- UTILITY ---------- Large Storage Unit Seismic Detector > --- WEAPON ----------- Particle Gun Particle Gun > --- INVENTORY -------- Ion Engine Compact Wheel Small Storage Unit Experimental Sensor Array Signal Interpreter Improved Targeting Computer Improved Targeting Computer Improved Targeting Computer Improved Targeting Computer Weapon Shielding Grenade Launcher Heavy Hammer Heavy Hammer Heavy Hammer Heavy Hammer [Rating: 14] Favorites ----------- Power Light Nuclear Core Engine Ion Engine Power Core Light Nuclear Core Propulsion Light Treads Treads Light Treads Wheel Compact Wheel Utility Large Storage Unit Device Seismic Detector Storage Large Storage Unit Processor Signal Interpreter Weapon Particle Gun Energy Gun Particle Gun Ballistic Gun Light Assault Rifle Launcher Grenade Launcher Build | -11 -10 -10 -10 ------- Run | Scr Mat Min Exi Slots Evolved . | . . . . Power . | . . . . Propulsion . | . . . . Utility . | . . . . Weapon . | . . . . Parts Attached 17 | 6 10 . 1 Power 2 | 1 1 . . Engine 1 | 1 . . . Core 1 | . 1 . . Reactor . | . . . . Propulsion 3 | 2 . . 1 Treads 2 | 2 . . . Leg . | . . . . Wheel 1 | . . . 1 Hover . | . . . . Flight . | . . . . Utility 4 | 1 3 . . Device 1 | . 1 . . Storage 2 | 1 1 . . Processor 1 | . 1 . . Hackware . | . . . . Protection . | . . . . Artifact . | . . . . Weapon 8 | 2 6 . . Energy Gun 6 | 1 5 . . Energy Cannon . | . . . . Ballistic Gun 1 | 1 . . . Ballistic Cannon . | . . . . Launcher 1 | . 1 . . Special Weapon . | . . . . Impact Weapon . | . . . . Slashing Weapon . | . . . . Piercing Weapon . | . . . . Special Melee Weapon . | . . . . Unidentified Prototypes . | . . . . Parts Lost 4 | . . . 4 Power 1 | . . . 1 Propulsion 2 | . . . 2 Utility . | . . . . Weapon 1 | . . . 1 Highest Loss Streak 4 | . . . 4 To Critical Strikes . | . . . . Average Slot Usage (%) 97 | . 93 100 98 Engine 2 | . 7 . . Core 11 | . 7 14 13 Treads 27 | . 28 28 27 Device 11 | . 6 14 14 Storage 14 | . 14 14 14 Energy Gun 23 | . 14 28 27 Ballistic Gun 4 | . 12 . . Naked Turns . | . . . . Heaviest Build 33 | 13 33 32 32 Greatest Support 40 | 40 40 40 40 Greatest Overweight (x) 1 | . . . 1 Average Overweight (x) . | . . . . Largest Inventory Capacity 15 | 8 15 15 15 Average Capacity 14 | 6 14 15 15 Most Carried 15 | 5 15 15 15 Average Carried 13 | 3 10 14 14 Final Capacity 15 | 8 15 15 15 Final Carried 15 | 4 15 15 14 Class Distribution -------------------- 100% | Mutant Dominant Class ---------------- Mutant | -10/Materials Mutant | -10/Mines Mutant | -10/Exiles Resources | -11 -10 -10 -10 ----------- Run | Scr Mat Min Exi Matter Collected 329 | 195 109 15 10 Remotely . | . . . . Salvage Created 141 | 19 122 . . Parts 14 | 2 12 . . Haulers Intercepted . | . . . . Recyclers Shooed . | . . . . Parts Field Recycled . | . . . . Retrieved Matter . | . . . . Parts Self-Destructed . | . . . . Prevented . | . . . . Kills | -11 -10 -10 -10 ------- Run | Scr Mat Min Exi Combat Hostiles Destroyed 5 | . 5 . . Guns 2 | . 2 . . AOE 3 | . 3 . . Classes Destroyed 3 | 1 2 . . Tunneler 2 | 1 1 . . Swarmer 3 | . 3 . . Grunt 2 | . 2 . . Best Kill Streak 3 | 1 3 . . Combat Bots Only 3 | . 3 . . Max Kills in Single Turn 2 | 1 2 . . Gunslinging . | . . . . Exploded 2 | . 2 . . Melee . | . . . . Uniques/NPCs Destroyed . | . . . . Combat | -11 -10 -10 -10 -------- Run | Scr Mat Min Exi Damage Taken 817 | . 222 . 595 Core 256 | . 47 . 209 Absorbed by Shields . | . . . . Core Remaining (%) 100 | 100 . . . Volleys Fired 20 | 1 18 . 1 Largest 2 | 2 2 . 2 Hottest 130 | 70 70 . 130 Shots Fired 37 | 2 33 . 2 Gun 34 | 2 30 . 2 Cannon . | . . . . Launcher 3 | . 3 . . Special . | . . . . Kinetic 16 | 1 15 . . Thermal 18 | 1 15 . 2 Explosive 3 | . 3 . . Electromagnetic . | . . . . Robot Hit Streak 5 | 1 5 . 1 Robot Miss Streak 2 | . 2 . 1 Penetration Max . | . . . . Secondary Targets . | . . . . Shots Hit Robots 21 | 1 19 . 1 Core Hits 12 | 1 11 . . Critical Kills . | . . . . Critical Parts Destroyed . | . . . . Critical Strikes . | . . . . Melee Attacks . | . . . . Impact . | . . . . Slashing . | . . . . Piercing . | . . . . Sneak Attacks . | . . . . Combat Hostiles . | . . . . Follow-up Attacks . | . . . . Damage Inflicted 345 | 12 317 . 16 Guns 227 | 12 199 . 16 Cannons . | . . . . Explosions 118 | . 118 . . Melee . | . . . . Ramming . | . . . . Kinetic 86 | . 86 . . Thermal 141 | 12 113 . 16 Explosive 118 | . 118 . . Electromagnetic . | . . . . Impact . | . . . . Slashing . | . . . . Piercing . | . . . . Highest Corruption . | . . . . Average Corruption . | . . . . Corruption Purged . | . . . . Corruption Blocked . | . . . . Overload Shots . | . . . . Overflow Damage . | . . . . Projectiles . | . . . . Explosions . | . . . . Melee . | . . . . Knockbacks . | . . . . Impact . | . . . . Kinetic . | . . . . Secondary . | . . . . Self-Inflicted Damage . | . . . . Shots . | . . . . Rammed . | . . . . Targets Rammed . | . . . . Kicked . | . . . . Crushed . | . . . . Highest Temperature 268 | 30 268 . 93 Average Temperature 106 | 18 118 . 49 Received Heat Transfer 162 | . 120 . 42 Siege Activations . | . . . . Robots Corrupted . | . . . . Combat Hostiles . | . . . . Parts Fried . | . . . . Impact Corruptions . | . . . . Robots Melted . | . . . . Combat Hostiles . | . . . . Parts Melted . | . . . . Heat Transferred 407 | 37 333 . 37 Parts Sabotaged . | . . . . Parts Stolen . | . . . . Parts Stripped . | . . . . Power Chain Reactions . | . . . . Missiles Intercepted . | . . . . Alert | -11 -10 -10 -10 ------- Run | Scr Mat Min Exi Peak Influence 231 | 5 231 12 . Initial 12 | . 3 12 . Average 36 | . 75 9 . Maximum Alert Level 1 | . 1 . . Low Security (%) 91 | 100 80 100 . Level 1 8 | . 19 . . Level 2 . | . . . . Level 3 . | . . . . Level 4 . | . . . . Level 5 . | . . . . High Security . | . . . . Max Security . | . . . . Squads Dispatched . | . . . . Investigation . | . . . . Extermination . | . . . . Reinforcement . | . . . . Assault . | . . . . Garrison . | . . . . Intercept . | . . . . Searches Triggered . | . . . . Construction Impeded . | . . . . Haulers Reinforced . | . . . . Active Scanning Responses . | . . . . Cargo Convoy Interrupts . | . . . . Stealth | -11 -10 -10 -10 --------- Run | Scr Mat Min Exi Distress Signals . | . . . . Communications Jammed . | . . . . Distress Signals . | . . . . Times Spotted 14 | . 9 . 5 Peak Tracking Total 6 | . 3 . 6 Tactical Retreats 1 | . 1 . . Traps | -11 -10 -10 -10 ------- Run | Scr Mat Min Exi Traps Triggered . | . . . . Indirectly . | . . . . Trap Hack Attempts . | . . . . Triggered . | . . . . Disarmed . | . . . . Reprogrammed . | . . . . Reused . | . . . . Traps Extracted . | . . . . Installed . | . . . . Triggered . | . . . . Exploded 1 | . . . 1 Machines | -11 -10 -10 -10 ---------- Run | Scr Mat Min Exi Machines Disabled . | . . . . Max in Single Turn . | . . . . Machines Sabotaged . | . . . . Garrisons Compromised . | . . . . Overloaded Fab Kills . | . . . . Hacking | -11 -10 -10 -10 --------- Run | Scr Mat Min Exi Machines Accessed 6 | . 4 . 2 Terminals 4 | . 4 . . Fabricators . | . . . . Repair Stations . | . . . . Recycling Units . | . . . . Scanalyzers . | . . . . Garrison Access . | . . . . Total Hacks 40 | . 16 . 24 Successful 33 | . 9 . 24 Failed 7 | . 7 . . Catastrophic 1 | . 1 . . Database Lockouts . | . . . . Manual 11 | . 10 . 1 Terminals 16 | . 16 . . Fabricators . | . . . . Repair Stations . | . . . . Recycling Units . | . . . . Scanalyzers . | . . . . Garrison Access . | . . . . Terminal Hacks 30 | . 6 . 24 Record 23 | . . . 23 Robot Analysis 1 | . 1 . . Prototype ID Bank 2 | . 2 . . Branch Access Points 1 | . 1 . . Hauler Manifests 1 | . 1 . . Registered Components 1 | . 1 . . EX-Prototype ID Bank 1 | . . . 1 Fabricator Hacks . | . . . . Repair Station Hacks . | . . . . Recycling Unit Hacks . | . . . . Scanalyzer . | . . . . Garrison Access Hacks . | . . . . Unauthorized Hacks 3 | . 3 . . Terminals 3 | . 3 . . Botnet 3 | . 3 . . Fabricators . | . . . . Repair Stations . | . . . . Recycling Units . | . . . . Scanalyzers . | . . . . Garrison Access . | . . . . Data Cores Recovered . | . . . . Used . | . . . . Hacking Detections 4 | . 4 . . Full Trace Events 2 | . 2 . . Feedback Events . | . . . . Feedback Blocked . | . . . . Robot Schematics Acquired . | . . . . Robots Built . | . . . . Authchips . | . . . . Time . | . . . . Total Robot Build Rating . | . . . . Part Schematics Acquired . | . . . . Parts Built . | . . . . Authchips . | . . . . Time . | . . . . Total Part Build Rating . | . . . . Parts Repaired . | . . . . Time . | . . . . Parts Recycled . | . . . . Recycled Matter . | . . . . Retrieved Matter . | . . . . Retrieved Components . | . . . . Parts Scanalyzed . | . . . . Part Schematics Acquired . | . . . . Parts Damaged . | . . . . Bothacking | -11 -10 -10 -10 ------------ Run | Scr Mat Min Exi Used RIF Installer . | . . . . Robots Hacked . | . . . . Non-combat . | . . . . Combat . | . . . . Robot Hacks Applied . | . . . . Relay Couplers Released . | . . . . Fabnet Peak Effective % . | . . . . Robots Rewired . | . . . . Allies Hacked . | . . . . Hacks Repelled . | . . . . Allies | -11 -10 -10 -10 -------- Run | Scr Mat Min Exi Total Allies 3 | . . 3 . Largest Group 3 | . . 3 2 Highest-Rated Group 73 | . . 73 42 Highest-Rated Ally 31 | . . 31 31 Total Orders . | . . . . Ally Attacks . | . . . . Total Damage . | . . . . Kills . | . . . . Allies Corrupted . | . . . . Allies Melted . | . . . . Intel | -11 -10 -10 -10 ------- Run | Scr Mat Min Exi Robot Analysis Total 1 | . 1 . . Derelict Logs Recovered 2 | . . 2 . Drone Launches . | . . . . Drone Recoveries . | . . . . Exploration | -11 -10 -10 -10 ------------- Run | Scr Mat Min Exi Turns Passed 1536 | 83 461 530 462 Spaces Moved 886 | 47 229 327 283 Core 7 | 7 . . . Treads 872 | 40 229 327 276 Legs . | . . . . Wheels 7 | . . . 7 Hover . | . . . . Flight . | . . . . Fastest Speed 50 | 50 160 160 115 Average Speed 158 | 143 160 160 158 Slowest Speed 160 | 160 160 160 160 Overloaded Moves . | . . . . Propulsion Burnouts . | . . . . Robots Hopped . | . . . . Cave-ins Triggered . | . . . . Exploration Rate (%) 37 | 3 36 53 59 Regions Visited 3 Branch Regions 2 Pre-discovered Areas 2 | . . 1 1 Known Exits Taken 1 | . 1 . . Unknown Exits Taken 2 | 1 . 1 . Scrap Searched 1 | . . 1 . Spaces Dug . | . . . . Terrain Destroyed 18 | . 18 . . Melee . | . . . . Projectile . | . . . . AOE 18 | . 18 . . Terrain Rammed . | . . . . Walls Destroyed . | . . . . Machines Disabled . | . . . . Actions | -11 -10 -10 -10 --------- Run | Scr Mat Min Exi Total 983 | 58 298 334 293 Wait 25 | . 11 6 8 Move 883 | 46 228 326 283 Hop . | . . . . Pick Up 23 | 5 17 1 . Fast Attach 10 | 5 5 . . Attach 3 | 1 1 . 1 Detach 3 | . 3 . . Swap 4 | . 4 . . Drop 12 | . 11 1 . Fire 20 | 1 18 . 1 Melee . | . . . . Ram . | . . . . Kick . | . . . . Crush . | . . . . Escape Stasis . | . . . . Rewire . | . . . . Trap . | . . . . Miscellaneous . | . . . . Route ------- -11/Scrapyard -10/Materials (discovered 2 exits: *Min x2) -10/Mines (discovered 2 exits: [*Mat] / *Exi) -10/Exiles History --------- Turn | Location | Event 36 | -11/Scrapyard | Discovered new exit (range 15) 84 | -11/Scrapyard | Entered Materials 221 | -10/Materials | Identified exit to Mines 308 | -10/Materials | Build established: Mutant 545 | -10/Materials | Entered Mines 550 | -10/Mines | Learned location of Mines (-9) 573 | -10/Mines | Learned location of 1 exit from Materials 606 | -10/Mines | Found a damaged Exp. Sensor Array with a note attached 615 | -10/Mines | Found Prototype Device 710 | -10/Mines | Discovered new exit (range 6) 716 | -10/Mines | Received a Mining Laser from a helpful Derelict 849 | -10/Mines | Deemed a non-threat by the Exiles lab entrance 1062 | -10/Mines | Discovered new exit (range 5) 1075 | -10/Mines | Entered Exiles 1075 | -10/Exiles | Accompanied by 2 allies 1105 | -10/Exiles | Led the pair of lost Derelicts to a safe place 1115 | -10/Exiles | Met 8R-AWN 1138 | -10/Exiles | Met EX-HEX 1184 | -10/Exiles | Met EX-BIN 1203 | -10/Exiles | Met EX-DEC 1256 | -10/Exiles | Learned location of Zion (-7) 1323 | -10/Exiles | Aligned with FarCom system 1325 | -10/Exiles | Given EX-Vault access code 1362 | -10/Exiles | Opened EX-Vault 1399 | -10/Exiles | Warned to stay clear of 0b10 Research branches 1427 | -10/Exiles | Exiles lab attacked by MAIN.C 1529 | -10/Exiles | Core integrity fell below 50% 1532 | -10/Exiles | Core integrity fell below 20% 1537 | -10/Exiles | Destroyed by D-53 Grenadier with Mini Grenade Launcher Last Messages --------------- 01450_ 8R-AWN: "I'll cover you all, get out of here!" 01455_ EX-HEX collects data from the Assembled Analyzer. 01462_ EXILES: Lab perimeter alert, evacuate immediately. 01502_ 5B-GYL(z) destroyed. 01502_ Machine disabled. 01503_ Acquired 10 matter. 01505_ Machine disabled. 01508_ The unstable cave ceiling collapses. 01514_ Particle Gun destroyed. 01524_ Lgt. Nuclear Core destroyed. 01527_ Lgt. Treads destroyed. 01527_ Penetrated by Slug. 01528_ Lgt. Treads destroyed. 01528_ Machine disabled. 01529_ 8R-AWN: "I have a feeling things are about to get a lot worse here, go go go take the back way out!" 01531_ Penetrated by Slug. 01535_ HV Slug penetrates Earth. 01536_ G-34 Mercenary Aluminum Leg blasted off. 01536_ G-34 Mercenary destroyed. Map ----- +----------------------------------------------------+ | ????????????????????????????? ??????# #?#""""" | | ????????????????????????????????????# #?#""""" | | ???????????????????????????????????## ###"" "" | | ???????????????????????????????????#" "" | | ???????????????????????????????????#" " | | ???????????????????????????????????#" " | | ???????????????????????????????????#" " | | ????????????????????########???????#" " | | ????????????????????# """#???????#" " | | ????????????????????#"" """#???????## " | | ????????????????????#"" #????????# " | | ????????????????????#"" #????????#" "X" " | | ????????????????????#"" "#????????#" """ | | ????????????????????# ""#????????#" """"""" | | ????????????????????#"" ""#???????##" ######## | | ????????????????????### ###??????##"" #??????? | | ???????? #####????### ###?######"" #??????? | | ??????? """#####X# #"###""""""" ##?????? | | ??????? """""" " "" ##???## | | ??????? "" """ " #####" | | ???????# " " " | | ????????## | | ?????????### g | | ???????????## | | ????????????## | | ?????????????##" @ gg | | ??????????????#""" d =%% * | | ?????????????##" | | ?????????????#"" | | ?????????????#""" """### | | ?????????????""" t """##??######## | | ?????????????""" ""#??????????###" | | ????????????#"" ###?####?????#"""" | | ????????????#""" ## ####""" | | ?????????????"" """" | | ?????????????#"" | | ?????????????#"""" | | ??????????????# | | ??????????????#" " "" | | ??????????????#"""" ""## ##""" " " | | ??????????????#"" g ""###???#?####""" | | ???????????????" """"##??????????###"" | | ???????????????""" """#??????????????## | | ???????????????? ""##???????????????? | | ????????????????"" """##????????????????? | | ?????????????????""" ##?????????????????? | | ???????????????????""" #???????????????????? | | ???????????????????? ????????????????????? | | ????????????????????#### #????????????????????? | | ???????????????????????## ?????????????????????? | +----------------------------------------------------+ Best States ------------- Heat Dissipation 25 Energy Generation 14 Energy Capacity 250 Matter Stores 300 Matter Capacity 300 Sight Range 16 Terrain Scan Density 10 Evasion (%) 40 Recoil Reduction 2 Item Schematics ----------------- None Robot Schematics ------------------ None Fabricated ------------ Nothing Alien Tech Used ----------------- None Achievements -------------- None Challenges ------------ None Game ------ Seed VariableAnalysisAirjet Manual? 0 Play Time 00:11:39 Cumulative 44.6 hours Start 2022.03.18 @ 12:02:10 End 2022.03.18 @ 12:11:14 Sessions 1 Manual Loads 0 Difficulty Rogue Special Mode None Game No. 32 Rogue 32 Adventurer 0 Explorer 0 Win Type - Total 1 Types 1/0/0/0/0/0/0/0/0 Lore% 33 Gallery% 42 Achievement% 37 Wizard Run 0 Options --------- ASCII 1 Keyboard 1 Movement Vi Keybinds 0 Fullscreen 1 Font 18/X11 Map View 76x50 Tactical HUD 1 Map Filters NONE Filters NONE Steam 1 RUN: 5aec3f27-0510-46b6-bc27-592c384c0049